[Event "Titled Tuesday Blitz June 28 Late 2022"]
[White "Jaskolka, Tomasz"]
[Black "Averjanov, Alexey"]
[WhiteFideId "1170791"]
[BlackFideId "14109867"]
[WhiteElo "2479"]
[BlackElo "2650"]
[Result "1/2-1/2"]
[Round "11"]
[TimeControl "180+1"]
[Date "2022.06.28"]
[WhiteClock "0:00:19"]
[BlackClock "0:00:52"]

1. d4 {[%clk 0:03:00]}  d5 {[%clk 0:02:59]} 2. Bf4 {[%clk 0:03:01]}  Nf6 {[%clk 0:02:59]} 3. e3 {[%clk 0:03:01]}  e6 {[%clk 0:02:58]} 4. c3 {[%clk 0:03:01]}  c5 {[%clk 0:02:59]} 5. Nd2 {[%clk 0:03:01]}  Bd6 {[%clk 0:02:59]} 6. Bg3 {[%clk 0:03:01]}  Qc7 {[%clk 0:02:59]} 7. Ngf3 {[%clk 0:03:02]}  Nbd7 {[%clk 0:02:59]} 8. Bd3 {[%clk 0:03:02]}  O-O {[%clk 0:02:59]} 9. Qe2 {[%clk 0:03:02]}  e5 {[%clk 0:02:59]} 10. dxe5 {[%clk 0:03:02]}  Nxe5 {[%clk 0:03:00]} 11. Nxe5 {[%clk 0:03:02]}  Bxe5 {[%clk 0:03:01]} 12. Bxe5 {[%clk 0:03:00]}  Qxe5 {[%clk 0:03:02]} 13. Nf3 {[%clk 0:03:01]}  Qe7 {[%clk 0:03:02]} 14. h3 {[%clk 0:03:01]}  b6 {[%clk 0:03:03]} 15. O-O-O {[%clk 0:03:01]}  Bb7 {[%clk 0:02:58]} 16. Kb1 {[%clk 0:03:02]}  Ne4 {[%clk 0:02:58]} 17. Nd2 {[%clk 0:02:57]}  Rad8 {[%clk 0:02:57]} 18. Nxe4 {[%clk 0:02:57]}  dxe4 {[%clk 0:02:58]} 19. Bc4 {[%clk 0:02:55]}  Rxd1+ {[%clk 0:02:58]} 20. Rxd1 {[%clk 0:02:55]}  Rd8 {[%clk 0:02:59]} 21. Kc2 {[%clk 0:02:55]}  g6 {[%clk 0:02:56]} 22. Rxd8+ {[%clk 0:02:54]}  Qxd8 {[%clk 0:02:57]} 23. Qd2 {[%clk 0:02:55]}  Qxd2+ {[%clk 0:02:57]} 24. Kxd2 {[%clk 0:02:55]}  Kg7 {[%clk 0:02:57]} 25. a4 {[%clk 0:02:53]}  a5 {[%clk 0:02:57]} 26. b4 {[%clk 0:02:43]}  axb4 {[%clk 0:02:56]} 27. cxb4 {[%clk 0:02:44]}  cxb4 {[%clk 0:02:56]} 28. Kc2 {[%clk 0:02:45]}  Bc6 {[%clk 0:02:56]} 29. Kb3 {[%clk 0:02:45]}  Kf6 {[%clk 0:02:55]} 30. Kxb4 {[%clk 0:02:46]}  Ke7 {[%clk 0:02:55]} 31. Bb5 {[%clk 0:02:42]}  Bb7 {[%clk 0:02:53]} 32. Kc4 {[%clk 0:02:40]}  Kd6 {[%clk 0:02:47]} 33. Kd4 {[%clk 0:02:40]}  f5 {[%clk 0:02:46]} 34. h4 {[%clk 0:02:27]}  h6 {[%clk 0:02:46]} 35. Be8 {[%clk 0:02:18]}  g5 {[%clk 0:02:43]} 36. hxg5 {[%clk 0:02:15]}  hxg5 {[%clk 0:02:44]} 37. g3 {[%clk 0:02:16]}  Bd5 {[%clk 0:02:33]} 38. Bg6 {[%clk 0:02:11]}  Be6 {[%clk 0:02:31]} 39. Be8 {[%clk 0:01:57]}  Bb3 {[%clk 0:02:24]} 40. g4 {[%clk 0:01:52]}  fxg4 {[%clk 0:02:20]} 41. Kxe4 {[%clk 0:01:51]}  Be6 {[%clk 0:02:19]} 42. Kd4 {[%clk 0:01:48]}  Bc8 {[%clk 0:02:14]} 43. e4 {[%clk 0:01:46]}  Ke7 {[%clk 0:02:09]} 44. Bb5 {[%clk 0:01:43]}  Kf6 {[%clk 0:01:59]} 45. e5+ {[%clk 0:01:39]}  Kf5 {[%clk 0:01:55]} 46. Be2 {[%clk 0:01:27]}  Be6 {[%clk 0:01:50]} 47. Bd1 {[%clk 0:01:23]}  Kf4 {[%clk 0:01:49]} 48. Be2 {[%clk 0:01:17]}  Bb3 {[%clk 0:01:43]} 49. Kc3 {[%clk 0:00:56]}  Bxa4 {[%clk 0:01:40]} 50. e6 {[%clk 0:00:56]}  g3 {[%clk 0:01:35]} 51. fxg3+ {[%clk 0:00:53]}  Kxg3 {[%clk 0:01:36]} 52. Kd4 {[%clk 0:00:52]}  Kf4 {[%clk 0:01:31]} 53. Kd5 {[%clk 0:00:28]}  g4 {[%clk 0:01:30]} 54. Kd6 {[%clk 0:00:28]}  g3 {[%clk 0:01:28]} 55. Bf1 {[%clk 0:00:28]}  Kf3 {[%clk 0:01:21]} 56. e7 {[%clk 0:00:25]}  Be8 {[%clk 0:01:16]} 57. Kc7 {[%clk 0:00:21]}  b5 {[%clk 0:01:16]} 58. Kd8 {[%clk 0:00:20]}  Bc6 {[%clk 0:01:10]} 59. Kc7 {[%clk 0:00:21]}  Be8 {[%clk 0:01:10]} 60. Kd8 {[%clk 0:00:21]}  Kf2 {[%clk 0:00:50]} 61. Kxe8 {[%clk 0:00:16]}  Kxf1 {[%clk 0:00:50]} 62. Kd8 {[%clk 0:00:16]}  g2 {[%clk 0:00:50]} 63. e8=Q {[%clk 0:00:17]}  g1=Q {[%clk 0:00:50]} 64. Qxb5+ {[%clk 0:00:18]}  Kg2 {[%clk 0:00:51]} 65. Qg5+ {[%clk 0:00:18]}  Kh1 {[%clk 0:00:51]} 66. Qh4+ {[%clk 0:00:18]}  Qh2 {[%clk 0:00:51]} 67. Qxh2+ {[%clk 0:00:19]}  Kxh2 {[%clk 0:00:52]} 1/2-1/2


[Site "https://www.chess.com"]

[Event "Titled Tuesday Blitz June 28 Late 2022"]
[White "Jessel, Stephen"]
[Black "Riehle, Marco"]
[WhiteFideId "628859"]
[BlackFideId "12904392"]
[WhiteElo "2588"]
[BlackElo "2845"]
[Result "0-1"]
[Round "11"]
[TimeControl "180+1"]
[Date "2022.06.28"]
[WhiteClock "0:00:07"]
[BlackClock "0:00:29"]

1. Nf3 {[%clk 0:03:00]}  d5 {[%clk 0:02:59]} 2. c4 {[%clk 0:03:01]}  e6 {[%clk 0:02:59]} 3. g3 {[%clk 0:03:01]}  Nf6 {[%clk 0:02:59]} 4. Bg2 {[%clk 0:03:02]}  c5 {[%clk 0:02:59]} 5. e3 {[%clk 0:03:02]}  Nc6 {[%clk 0:03:00]} 6. O-O {[%clk 0:03:02]}  Be7 {[%clk 0:02:52]} 7. b3 {[%clk 0:03:02]}  O-O {[%clk 0:02:51]} 8. Bb2 {[%clk 0:03:02]}  d4 {[%clk 0:02:50]} 9. exd4 {[%clk 0:03:02]}  cxd4 {[%clk 0:02:51]} 10. Re1 {[%clk 0:03:03]}  a5 {[%clk 0:02:48]} 11. d3 {[%clk 0:03:00]}  Re8 {[%clk 0:02:37]} 12. Ne5 {[%clk 0:02:49]}  Nxe5 {[%clk 0:02:31]} 13. Rxe5 {[%clk 0:02:47]}  Bd6 {[%clk 0:02:32]} 14. Bxd4 {[%clk 0:02:44]}  Bxe5 {[%clk 0:02:31]} 15. Bxe5 {[%clk 0:02:45]}  Nd7 {[%clk 0:02:23]} 16. Bc3 {[%clk 0:02:37]}  e5 {[%clk 0:02:22]} 17. Nd2 {[%clk 0:02:30]}  Nc5 {[%clk 0:02:21]} 18. Ne4 {[%clk 0:02:30]}  Nxd3 {[%clk 0:02:18]} 19. Qh5 {[%clk 0:01:52]}  Qc7 {[%clk 0:01:55]} 20. Rd1 {[%clk 0:01:39]}  Nb4 {[%clk 0:01:28]} 21. Bxe5 {[%clk 0:01:27]}  Qe7 {[%clk 0:01:21]} 22. Bd6 {[%clk 0:00:46]}  Qe6 {[%clk 0:01:16]} 23. a3 {[%clk 0:00:10]}  Nc6 {[%clk 0:01:16]} 24. Ng5 {[%clk 0:00:06]}  Qg6 {[%clk 0:01:06]} 25. Qxg6 {[%clk 0:00:06]}  hxg6 {[%clk 0:01:07]} 26. Bd5 {[%clk 0:00:07]}  Nd8 {[%clk 0:01:02]} 27. Bc7 {[%clk 0:00:06]}  Ne6 {[%clk 0:00:59]} 28. Nxe6 {[%clk 0:00:01]}  Bxe6 {[%clk 0:01:00]} 29. Bxb7 {[%clk 0:00:02]}  Ra7 {[%clk 0:00:57]} 30. Bc6 {[%clk 0:00:02]}  Rc8 {[%clk 0:00:49]} 31. Bb6 {[%clk 0:00:02]}  Ra6 {[%clk 0:00:49]} 32. Bb7 {[%clk 0:00:03]}  Rxb6 {[%clk 0:00:49]} 33. Bxc8 {[%clk 0:00:03]}  Bxc8 {[%clk 0:00:38]} 34. Rd8+ {[%clk 0:00:03]}  Kh7 {[%clk 0:00:39]} 35. Rxc8 {[%clk 0:00:03]}  Rxb3 {[%clk 0:00:40]} 36. Rc7 {[%clk 0:00:02]}  f6 {[%clk 0:00:38]} 37. a4 {[%clk 0:00:01]}  Rb4 {[%clk 0:00:36]} 38. h4 {[%clk 0:00:02]}  Rxa4 {[%clk 0:00:32]} 39. Kg2 {[%clk 0:00:02]}  Rb4 {[%clk 0:00:29]} 40. Ra7 {[%clk 0:00:02]}  Rxc4 {[%clk 0:00:27]} 41. Rxa5 {[%clk 0:00:02]}  Rc6 {[%clk 0:00:28]} 42. Ra3 {[%clk 0:00:02]}  Rc4 {[%clk 0:00:28]} 43. Ra8 {[%clk 0:00:02]}  Rc5 {[%clk 0:00:27]} 44. Kf3 {[%clk 0:00:03]}  g5 {[%clk 0:00:27]} 45. hxg5 {[%clk 0:00:03]}  Rxg5 {[%clk 0:00:28]} 46. Kg2 {[%clk 0:00:03]}  Kg6 {[%clk 0:00:29]} 47. Ra3 {[%clk 0:00:03]}  Rb5 {[%clk 0:00:29]} 48. Rc3 {[%clk 0:00:04]}  Kf5 {[%clk 0:00:29]} 49. Rf3+ {[%clk 0:00:04]}  Kg5 {[%clk 0:00:29]} 50. Re3 {[%clk 0:00:05]}  Rb2 {[%clk 0:00:29]} 51. Re7 {[%clk 0:00:05]}  g6 {[%clk 0:00:29]} 52. Rd7 {[%clk 0:00:06]}  f5 {[%clk 0:00:29]} 53. Rc7 {[%clk 0:00:06]}  Kf6 {[%clk 0:00:29]} 54. Rc6+ {[%clk 0:00:06]}  Kf7 {[%clk 0:00:29]} 55. Kf3 {[%clk 0:00:06]}  g5 {[%clk 0:00:29]} 56. Kg2 {[%clk 0:00:06]}  Rb5 {[%clk 0:00:28]} 57. Ra6 {[%clk 0:00:07]}  Kg7 {[%clk 0:00:28]} 58. Kf3 {[%clk 0:00:07]}  Re5 {[%clk 0:00:28]} 59. Kg2 {[%clk 0:00:07]}  Re4 {[%clk 0:00:28]} 60. Rb6 {[%clk 0:00:07]}  Kf7 {[%clk 0:00:29]} 61. Ra6 {[%clk 0:00:07]}  Re6 {[%clk 0:00:29]} 62. Kf3 {[%clk 0:00:07]}  Rxa6 {[%clk 0:00:29]} 0-1


[Site "https://www.chess.com"]

[Event "Titled Tuesday Blitz June 28 Late 2022"]
[White "Kohler, Aran"]
[Black "De La Colina, Nicolas"]
[WhiteFideId "1002856"]
[BlackFideId "30946921"]
[WhiteElo "2285"]
[BlackElo "2046"]
[Result "0-1"]
[Round "11"]
[TimeControl "180+1"]
[Date "2022.06.29"]
[WhiteClock "0:00:05"]
[BlackClock "0:00:35"]

1. d4 {[%clk 0:02:59]}  f5 {[%clk 0:02:58]} 2. Qd3 {[%clk 0:02:57]}  d5 {[%clk 0:02:57]} 3. g4 {[%clk 0:02:54]}  fxg4 {[%clk 0:02:58]} 4. h3 {[%clk 0:02:53]}  Nf6 {[%clk 0:02:56]} 5. hxg4 {[%clk 0:02:49]}  Bxg4 {[%clk 0:02:57]} 6. Bh3 {[%clk 0:02:37]}  Qd7 {[%clk 0:02:56]} 7. f3 {[%clk 0:02:32]}  Bxh3 {[%clk 0:02:46]} 8. Nxh3 {[%clk 0:02:32]}  Nc6 {[%clk 0:02:33]} 9. Bf4 {[%clk 0:02:12]}  e6 {[%clk 0:02:29]} 10. c3 {[%clk 0:02:07]}  O-O-O {[%clk 0:02:28]} 11. Nd2 {[%clk 0:02:05]}  Bd6 {[%clk 0:02:27]} 12. Bxd6 {[%clk 0:02:03]}  cxd6 {[%clk 0:02:28]} 13. O-O-O {[%clk 0:02:00]}  e5 {[%clk 0:02:23]} 14. Kb1 {[%clk 0:01:51]}  h6 {[%clk 0:02:15]} 15. e4 {[%clk 0:01:50]}  g5 {[%clk 0:02:04]} 16. exd5 {[%clk 0:01:48]}  Nxd5 {[%clk 0:01:59]} 17. Ne4 {[%clk 0:01:42]}  exd4 {[%clk 0:01:48]} 18. cxd4 {[%clk 0:01:38]}  Kb8 {[%clk 0:01:45]} 19. Qb3 {[%clk 0:01:26]}  Qf5 {[%clk 0:01:31]} 20. Ka1 {[%clk 0:00:57]}  Nb6 {[%clk 0:01:31]} 21. d5 {[%clk 0:00:52]}  Ne5 {[%clk 0:01:26]} 22. Nhxg5 {[%clk 0:00:29]}  hxg5 {[%clk 0:01:22]} 23. Rxh8 {[%clk 0:00:30]}  Rxh8 {[%clk 0:01:23]} 24. Nxd6 {[%clk 0:00:30]}  Qxf3 {[%clk 0:01:20]} 25. Qc2 {[%clk 0:00:18]}  Rh2 {[%clk 0:01:11]} 26. Qb3 {[%clk 0:00:12]}  Qxb3 {[%clk 0:01:01]} 27. axb3 {[%clk 0:00:13]}  g4 {[%clk 0:00:56]} 28. Ne4 {[%clk 0:00:10]}  Rh8 {[%clk 0:00:50]} 29. d6 {[%clk 0:00:09]}  Rd8 {[%clk 0:00:49]} 30. Rf1 {[%clk 0:00:08]}  Nc8 {[%clk 0:00:45]} 31. Rf6 {[%clk 0:00:06]}  g3 {[%clk 0:00:39]} 32. Nxg3 {[%clk 0:00:05]}  Nxd6 {[%clk 0:00:35]} 0-1


[Site "https://www.chess.com"]

[Event "Titled Tuesday Blitz June 28 Late 2022"]
[White "Kostiukov, Alexandr"]
[Black "Khan, Taffin"]
[WhiteFideId "14108100"]
[BlackFideId "19700024"]
[WhiteElo "2202"]
[BlackElo "2066"]
[Result "1-0"]
[Round "11"]
[TimeControl "180+1"]
[Date "2022.06.29"]
[WhiteClock "0:01:35"]
[BlackClock "0:00:09"]

1. g3 {[%clk 0:03:00]}  Nf6 {[%clk 0:02:45]} 2. Bg2 {[%clk 0:03:00]}  e5 {[%clk 0:02:44]} 3. c4 {[%clk 0:02:59]}  c6 {[%clk 0:02:42]} 4. Nc3 {[%clk 0:02:48]}  Bc5 {[%clk 0:02:40]} 5. e3 {[%clk 0:02:46]}  a6 {[%clk 0:02:30]} 6. d4 {[%clk 0:02:44]}  exd4 {[%clk 0:02:30]} 7. exd4 {[%clk 0:02:45]}  Ba7 {[%clk 0:02:28]} 8. Qe2+ {[%clk 0:02:45]}  Qe7 {[%clk 0:02:28]} 9. Qxe7+ {[%clk 0:02:43]}  Kxe7 {[%clk 0:02:28]} 10. Nf3 {[%clk 0:02:35]}  d6 {[%clk 0:02:23]} 11. O-O {[%clk 0:02:33]}  h6 {[%clk 0:02:20]} 12. h3 {[%clk 0:02:24]}  Re8 {[%clk 0:02:17]} 13. Bf4 {[%clk 0:02:19]}  Nh5 {[%clk 0:02:06]} 14. Be3 {[%clk 0:02:17]}  Kd7 {[%clk 0:00:34]} 15. g4 {[%clk 0:02:09]}  Nf6 {[%clk 0:00:34]} 16. c5 {[%clk 0:02:08]}  dxc5 {[%clk 0:00:31]} 17. dxc5 {[%clk 0:02:08]}  Ke7 {[%clk 0:00:31]} 18. b4 {[%clk 0:02:02]}  Kf8 {[%clk 0:00:29]} 19. Nd2 {[%clk 0:01:54]}  Nbd7 {[%clk 0:00:29]} 20. Nc4 {[%clk 0:01:53]}  Bb8 {[%clk 0:00:27]} 21. Bd4 {[%clk 0:01:46]}  Ne5 {[%clk 0:00:18]} 22. Nb6 {[%clk 0:01:43]}  Ra7 {[%clk 0:00:16]} 23. Rfe1 {[%clk 0:01:39]}  Ned7 {[%clk 0:00:09]} 24. Rxe8+ {[%clk 0:01:35]} 1-0


[Site "https://www.chess.com"]

[Event "Titled Tuesday Blitz June 28 Late 2022"]
[White "Leiva, Gianmarco"]
[Black "Voege, Tobias"]
[WhiteFideId "3804399"]
[BlackFideId "1270513"]
[WhiteElo "2676"]
[BlackElo "2506"]
[Result "0-1"]
[Round "11"]
[TimeControl "180+1"]
[Date "2022.06.28"]
[WhiteClock "0:00:07"]
[BlackClock "0:00:52"]

1. e4 {[%clk 0:03:00]}  e6 {[%clk 0:02:59]} 2. d4 {[%clk 0:03:00]}  d5 {[%clk 0:02:59]} 3. Nc3 {[%clk 0:03:01]}  Bb4 {[%clk 0:02:58]} 4. e5 {[%clk 0:02:59]}  c5 {[%clk 0:02:56]} 5. a3 {[%clk 0:02:56]}  Bxc3+ {[%clk 0:02:56]} 6. bxc3 {[%clk 0:02:56]}  Ne7 {[%clk 0:02:53]} 7. Qg4 {[%clk 0:02:50]}  Ng6 {[%clk 0:02:51]} 8. h4 {[%clk 0:02:50]}  h5 {[%clk 0:02:51]} 9. Qg3 {[%clk 0:02:46]}  c4 {[%clk 0:02:47]} 10. Nf3 {[%clk 0:02:39]}  Nc6 {[%clk 0:02:46]} 11. Ng5 {[%clk 0:02:38]}  Nce7 {[%clk 0:02:44]} 12. Be2 {[%clk 0:02:34]}  Nf5 {[%clk 0:02:44]} 13. Qh2 {[%clk 0:02:32]}  Nfxh4 {[%clk 0:02:36]} 14. g3 {[%clk 0:02:29]}  Nf5 {[%clk 0:02:36]} 15. g4 {[%clk 0:02:29]}  Nh6 {[%clk 0:02:25]} 16. gxh5 {[%clk 0:02:26]}  Ne7 {[%clk 0:02:24]} 17. a4 {[%clk 0:02:23]}  Nef5 {[%clk 0:02:23]} 18. Qg2 {[%clk 0:02:19]}  Qa5 {[%clk 0:02:22]} 19. Bd2 {[%clk 0:02:14]}  Bd7 {[%clk 0:02:22]} 20. O-O {[%clk 0:01:53]}  Nxd4 {[%clk 0:02:13]} 21. Bd1 {[%clk 0:00:51]}  Ndf5 {[%clk 0:02:04]} 22. Qf3 {[%clk 0:00:46]}  Bc6 {[%clk 0:02:01]} 23. Qf4 {[%clk 0:00:45]}  O-O-O {[%clk 0:01:58]} 24. Nf3 {[%clk 0:00:45]}  g6 {[%clk 0:01:53]} 25. Nd4 {[%clk 0:00:45]}  gxh5 {[%clk 0:01:40]} 26. Bf3 {[%clk 0:00:43]}  Rdg8+ {[%clk 0:01:37]} 27. Kh1 {[%clk 0:00:42]}  Nxd4 {[%clk 0:01:34]} 28. cxd4 {[%clk 0:00:42]}  Qd8 {[%clk 0:01:34]} 29. Qf6 {[%clk 0:00:14]}  Qxf6 {[%clk 0:01:31]} 30. exf6 {[%clk 0:00:15]}  Ng4 {[%clk 0:01:30]} 31. a5 {[%clk 0:00:15]}  Nxf6 {[%clk 0:01:28]} 32. Bf4 {[%clk 0:00:14]}  a6 {[%clk 0:01:25]} 33. Be5 {[%clk 0:00:13]}  Rh6 {[%clk 0:01:26]} 34. Rg1 {[%clk 0:00:13]}  Ng4 {[%clk 0:01:25]} 35. c3 {[%clk 0:00:12]}  Nxf2+ {[%clk 0:01:23]} 36. Kh2 {[%clk 0:00:12]}  Ng4+ {[%clk 0:01:20]} 37. Bxg4 {[%clk 0:00:10]}  hxg4+ {[%clk 0:01:21]} 38. Kg2 {[%clk 0:00:10]}  Rh3 {[%clk 0:01:20]} 39. Bg3 {[%clk 0:00:08]}  f5 {[%clk 0:01:14]} 40. Rh1 {[%clk 0:00:08]}  Rgh8 {[%clk 0:01:07]} 41. Rxh3 {[%clk 0:00:08]}  Rxh3 {[%clk 0:01:08]} 42. Rf1 {[%clk 0:00:06]}  Ba4 {[%clk 0:01:05]} 43. Re1 {[%clk 0:00:05]}  Kd7 {[%clk 0:01:02]} 44. Rb1 {[%clk 0:00:05]}  Bb3 {[%clk 0:01:00]} 45. Rf1 {[%clk 0:00:05]}  Bc2 {[%clk 0:00:59]} 46. Rc1 {[%clk 0:00:05]}  Be4+ {[%clk 0:00:58]} 47. Kf2 {[%clk 0:00:06]}  f4 {[%clk 0:00:58]} 48. Bxf4 {[%clk 0:00:05]}  Rf3+ {[%clk 0:00:58]} 49. Ke2 {[%clk 0:00:05]}  Bd3+ {[%clk 0:00:58]} 50. Kd2 {[%clk 0:00:05]}  Rxf4 {[%clk 0:00:58]} 51. Rh1 {[%clk 0:00:06]}  Re4 {[%clk 0:00:55]} 52. Rh7+ {[%clk 0:00:04]}  Kc6 {[%clk 0:00:56]} 53. Rh8 {[%clk 0:00:05]}  Re2+ {[%clk 0:00:55]} 54. Kd1 {[%clk 0:00:05]}  g3 {[%clk 0:00:54]} 55. Rg8 {[%clk 0:00:06]}  g2 {[%clk 0:00:54]} 56. Rg5 {[%clk 0:00:06]}  Rf2 {[%clk 0:00:52]} 57. Ke1 {[%clk 0:00:06]}  Rf1+ {[%clk 0:00:52]} 58. Kd2 {[%clk 0:00:07]}  g1=Q {[%clk 0:00:52]} 0-1


[Site "https://www.chess.com"]

[Event "Titled Tuesday Blitz June 28 Late 2022"]
[White "Manukian, Artak"]
[Black "Souleidis, Georgios"]
[WhiteFideId "13301373"]
[BlackFideId "4206827"]
[WhiteElo "2476"]
[BlackElo "2556"]
[Result "0-1"]
[Round "11"]
[TimeControl "180+1"]
[Date "2022.06.28"]
[WhiteClock "0:00:09"]
[BlackClock "0:00:27"]

1. e4 {[%clk 0:03:00]}  e5 {[%clk 0:02:57]} 2. Nf3 {[%clk 0:03:00]}  d6 {[%clk 0:02:57]} 3. d4 {[%clk 0:03:01]}  Bg4 {[%clk 0:02:57]} 4. dxe5 {[%clk 0:03:00]}  Nd7 {[%clk 0:02:57]} 5. e6 {[%clk 0:02:54]}  fxe6 {[%clk 0:02:55]} 6. h3 {[%clk 0:02:53]}  Bh5 {[%clk 0:02:47]} 7. Nc3 {[%clk 0:02:46]}  c6 {[%clk 0:02:37]} 8. Bc4 {[%clk 0:02:40]}  d5 {[%clk 0:02:36]} 9. exd5 {[%clk 0:02:39]}  exd5 {[%clk 0:02:36]} 10. Be2 {[%clk 0:02:34]}  Ngf6 {[%clk 0:02:34]} 11. O-O {[%clk 0:02:33]}  Bd6 {[%clk 0:02:34]} 12. Nd4 {[%clk 0:02:29]}  Bf7 {[%clk 0:02:28]} 13. Bg4 {[%clk 0:02:20]}  O-O {[%clk 0:02:13]} 14. Ne6 {[%clk 0:02:19]}  Bxe6 {[%clk 0:02:12]} 15. Bxe6+ {[%clk 0:02:20]}  Kh8 {[%clk 0:02:13]} 16. Re1 {[%clk 0:02:00]}  Nc5 {[%clk 0:02:13]} 17. Bg4 {[%clk 0:01:59]}  Bc7 {[%clk 0:02:07]} 18. Bf3 {[%clk 0:01:51]}  Qd6 {[%clk 0:02:03]} 19. g3 {[%clk 0:01:51]}  Qd7 {[%clk 0:02:01]} 20. Bg2 {[%clk 0:01:48]}  Rf7 {[%clk 0:01:44]} 21. b4 {[%clk 0:01:43]}  Ne6 {[%clk 0:01:38]} 22. Ne2 {[%clk 0:01:25]}  Raf8 {[%clk 0:01:32]} 23. Be3 {[%clk 0:01:18]}  Bb6 {[%clk 0:01:32]} 24. Nd4 {[%clk 0:01:11]}  Nxd4 {[%clk 0:01:20]} 25. Bxd4 {[%clk 0:01:11]}  Ne8 {[%clk 0:01:18]} 26. Bxb6 {[%clk 0:01:02]}  axb6 {[%clk 0:01:18]} 27. Re2 {[%clk 0:01:02]}  Nd6 {[%clk 0:01:18]} 28. a4 {[%clk 0:00:56]}  Nc4 {[%clk 0:01:16]} 29. Qd4 {[%clk 0:00:51]}  Qd6 {[%clk 0:01:12]} 30. c3 {[%clk 0:00:51]}  Qg6 {[%clk 0:00:54]} 31. Rf1 {[%clk 0:00:40]}  h6 {[%clk 0:00:48]} 32. h4 {[%clk 0:00:35]}  Qd6 {[%clk 0:00:42]} 33. Rd1 {[%clk 0:00:30]}  Qc7 {[%clk 0:00:42]} 34. Rde1 {[%clk 0:00:26]}  Nd6 {[%clk 0:00:40]} 35. f4 {[%clk 0:00:15]}  b5 {[%clk 0:00:37]} 36. a5 {[%clk 0:00:15]}  Nc4 {[%clk 0:00:37]} 37. Re8 {[%clk 0:00:12]}  Qd7 {[%clk 0:00:33]} 38. Rxf8+ {[%clk 0:00:12]}  Rxf8 {[%clk 0:00:34]} 39. Kh2 {[%clk 0:00:12]}  Re8 {[%clk 0:00:30]} 40. Bh3 {[%clk 0:00:11]}  Qd8 {[%clk 0:00:29]} 41. Rxe8+ {[%clk 0:00:09]}  Qxe8 {[%clk 0:00:30]} 42. f5 {[%clk 0:00:08]}  Qe2+ {[%clk 0:00:28]} 43. Bg2 {[%clk 0:00:09]}  Ne3 {[%clk 0:00:27]} 0-1


[Site "https://www.chess.com"]

[Event "Titled Tuesday Blitz June 28 Late 2022"]
[White "Navarrete Mendez, Gonzalo Alberto"]
[Black "Ladan, Nicholas"]
[WhiteFideId "5106850"]
[BlackFideId "30918855"]
[WhiteElo "2645"]
[BlackElo "2510"]
[Result "1-0"]
[Round "11"]
[TimeControl "180+1"]
[Date "2022.06.28"]
[WhiteClock "0:00:19"]
[BlackClock "0:00:09"]

1. e4 {[%clk 0:03:00]}  e5 {[%clk 0:03:00]} 2. Nf3 {[%clk 0:03:01]}  Nc6 {[%clk 0:03:00]} 3. Nc3 {[%clk 0:03:00]}  Nf6 {[%clk 0:03:00]} 4. Bb5 {[%clk 0:03:00]}  Nd4 {[%clk 0:02:57]} 5. O-O {[%clk 0:03:00]}  Nxb5 {[%clk 0:02:55]} 6. Nxb5 {[%clk 0:03:01]}  c6 {[%clk 0:02:53]} 7. Nc3 {[%clk 0:03:00]}  d6 {[%clk 0:02:53]} 8. d4 {[%clk 0:03:00]}  Qc7 {[%clk 0:02:51]} 9. Bg5 {[%clk 0:02:59]}  Be7 {[%clk 0:02:51]} 10. h3 {[%clk 0:02:59]}  h6 {[%clk 0:02:48]} 11. Bxf6 {[%clk 0:02:59]}  Bxf6 {[%clk 0:02:49]} 12. d5 {[%clk 0:03:00]}  O-O {[%clk 0:02:48]} 13. Qd3 {[%clk 0:02:57]}  Rd8 {[%clk 0:02:41]} 14. Rfd1 {[%clk 0:02:53]}  a5 {[%clk 0:02:34]} 15. a4 {[%clk 0:02:47]}  Qb6 {[%clk 0:02:30]} 16. Nd2 {[%clk 0:02:33]}  Bh4 {[%clk 0:02:14]} 17. g3 {[%clk 0:02:26]}  Be7 {[%clk 0:02:09]} 18. Nc4 {[%clk 0:02:24]}  Qc5 {[%clk 0:02:04]} 19. Kg2 {[%clk 0:02:17]}  Bd7 {[%clk 0:01:47]} 20. Ne3 {[%clk 0:02:10]}  Be8 {[%clk 0:01:44]} 21. Nf5 {[%clk 0:02:09]}  Bf8 {[%clk 0:01:44]} 22. Ne3 {[%clk 0:01:25]}  Rdb8 {[%clk 0:01:29]} 23. Ra3 {[%clk 0:01:01]}  g6 {[%clk 0:01:21]} 24. Raa1 {[%clk 0:00:51]}  Ra6 {[%clk 0:01:16]} 25. dxc6 {[%clk 0:00:48]}  Bxc6 {[%clk 0:01:10]} 26. Ncd5 {[%clk 0:00:41]}  Raa8 {[%clk 0:00:59]} 27. c3 {[%clk 0:00:41]}  b5 {[%clk 0:00:58]} 28. b4 {[%clk 0:00:39]}  Qa7 {[%clk 0:00:51]} 29. axb5 {[%clk 0:00:38]}  Bxb5 {[%clk 0:00:43]} 30. c4 {[%clk 0:00:38]}  Bc6 {[%clk 0:00:43]} 31. Rxa5 {[%clk 0:00:36]}  Qb7 {[%clk 0:00:42]} 32. Rxa8 {[%clk 0:00:35]}  Rxa8 {[%clk 0:00:43]} 33. b5 {[%clk 0:00:35]}  Bxd5 {[%clk 0:00:37]} 34. Nxd5 {[%clk 0:00:36]}  Ra2 {[%clk 0:00:36]} 35. Rd2 {[%clk 0:00:35]}  Ra1 {[%clk 0:00:35]} 36. Rd1 {[%clk 0:00:32]}  Ra2 {[%clk 0:00:35]} 37. Qf3 {[%clk 0:00:29]}  Bg7 {[%clk 0:00:31]} 38. Qb3 {[%clk 0:00:25]}  Re2 {[%clk 0:00:27]} 39. Kf3 {[%clk 0:00:23]}  Rxe4 {[%clk 0:00:04]} 40. Kxe4 {[%clk 0:00:22]}  f5+ {[%clk 0:00:04]} 41. Kf3 {[%clk 0:00:22]}  Kh7 {[%clk 0:00:05]} 42. Kg2 {[%clk 0:00:19]}  h5 {[%clk 0:00:05]} 43. Qf3 {[%clk 0:00:18]}  e4 {[%clk 0:00:04]} 44. Qf4 {[%clk 0:00:18]}  Be5 {[%clk 0:00:05]} 45. Qg5 {[%clk 0:00:18]}  e3 {[%clk 0:00:05]} 46. Qe7+ {[%clk 0:00:17]}  Qxe7 {[%clk 0:00:04]} 47. Nxe7 {[%clk 0:00:18]}  e2 {[%clk 0:00:04]} 48. Re1 {[%clk 0:00:18]}  h4 {[%clk 0:00:04]} 49. Rxe2 {[%clk 0:00:18]}  d5 {[%clk 0:00:04]} 50. Rxe5 {[%clk 0:00:18]}  dxc4 {[%clk 0:00:05]} 51. Rc5 {[%clk 0:00:18]}  c3 {[%clk 0:00:05]} 52. Rxc3 {[%clk 0:00:19]}  hxg3 {[%clk 0:00:05]} 53. Kxg3 {[%clk 0:00:19]}  Kh6 {[%clk 0:00:06]} 54. b6 {[%clk 0:00:19]}  Kh5 {[%clk 0:00:07]} 55. b7 {[%clk 0:00:20]}  f4+ {[%clk 0:00:07]} 56. Kxf4 {[%clk 0:00:19]}  g5+ {[%clk 0:00:08]} 57. Kf5 {[%clk 0:00:19]}  g4 {[%clk 0:00:09]} 58. hxg4+ {[%clk 0:00:18]}  Kh4 {[%clk 0:00:09]} 59. g5 {[%clk 0:00:18]}  Kh5 {[%clk 0:00:09]} 60. Rh3# {[%clk 0:00:19]} 1-0


[Site "https://www.chess.com"]